Cogmind - Beta 15 @@@ ROGUE MODE // 2025.05.11 @ 15:48:56 Player: Minty Result: Destroyed by Autobeam Turret with Autobeam Performance ------------- Evolutions (0) 0 Regions Visited (2) 400 Robots Destroyed (20) 100 Value Destroyed (599) 599 Prototype IDs (2) 40 Alien Tech Used (0) 0 Bonus (0) 0 TOTAL SCORE: 1139 Bonus ------- None Cogmind --------- Core Integrity 0/250 Matter 280/300 Energy 198/200 System Corruption 1% Temperature Cool (6) Movement Rolling (80) Location -10/Subcaves Parts ------- > --- POWER (1) -------- Subdweller Power Source > --- PROPULSION (2) --- Wheel Wheel > --- UTILITY (2) ------ Small Storage Unit Improved Targeting Computer > --- WEAPON (2) ------- Subdweller Laser Subdweller Machine Gun > --- INVENTORY (8) ---- Wheel EM Shotgun EM Shotgun Particle Gun Flamer Piercing Trap Peak State ------------ > --- POWER ------------ Ion Engine > --- PROPULSION ------- Light Treads Light Treads > --- UTILITY ---------- Small Storage Unit Makeshift Thermal Plating > --- WEAPON ----------- Particle Gun Particle Gun > --- INVENTORY -------- Aluminum Leg Wheel Wheel Improved Targeting Computer EM Shotgun EM Shotgun Subdweller Laser Subdweller Machine Gun [Rating: 13] Favorites ----------- Power Ion Engine Engine Ion Engine Propulsion Light Treads Treads Light Treads Leg Aluminum Leg Wheel Wheel Utility Small Storage Unit Device Heat Sink Storage Small Storage Unit Processor Improved Targeting Computer Hackware Hacking Suite Protection Makeshift Thermal Plating Weapon Particle Gun Energy Gun Particle Gun Ballistic Gun Subdweller Machine Gun Special Weapon Flamer Build | -11 -10 -10 ------- Run | Yrd Mat Sub Slots Evolved . | . . . Power . | . . . Propulsion . | . . . Utility . | . . . Weapon . | . . . Parts Attached 24 | . 11 13 Power 3 | . 1 2 Engine 3 | . 1 2 Core . | . . . Reactor . | . . . Propulsion 6 | . 4 2 Treads 2 | . . 2 Leg 2 | . 2 . Wheel 2 | . 2 . Hover . | . . . Flight . | . . . Utility 6 | . 3 3 Device 2 | . 1 1 Storage . | . . . Processor 2 | . 1 1 Hackware 1 | . 1 . Protection 1 | . . 1 Artifact . | . . . Weapon 9 | . 3 6 Energy Gun 6 | . 2 4 Energy Cannon . | . . . Ballistic Gun 2 | . 1 1 Ballistic Cannon . | . . . Launcher . | . . . Special Weapon 1 | . . 1 Impact Weapon . | . . . Slashing Weapon . | . . . Piercing Weapon . | . . . Special Melee Weapon . | . . . Unidentified Prototypes . | . . . Parts Lost 2 | . . 2 Power . | . . . Propulsion 1 | . . 1 Utility 1 | . . 1 Weapon . | . . . Highest Loss Streak 1 | . . 1 To Critical Strikes . | . . . Average Backups 7 | . 7 7 Power . | . . . Propulsion 3 | . 3 2 Utility . | . 1 . Weapon 3 | . 1 3 Tool/Special . | . . . Unused Backups 11 | . 10 1 Power 2 | . 2 . Propulsion 1 | . . 1 Utility 3 | . 3 . Weapon 5 | . 5 . Tool/Special . | . . . Average Slot Usage (%) 99 | . 97 99 Engine 14 | . 14 14 Treads 15 | . . 20 Leg 10 | . 26 5 Wheel 1 | . . 1 Device 7 | . 8 7 Storage 14 | . 14 14 Processor 1 | . 3 1 Protection 3 | . . 5 Energy Gun 18 | . 20 17 Ballistic Gun 9 | . 6 9 Peak Build Rating 13 | . 12 13 Average Rating 10 | . 9 11 On Entrance 7 | 6 6 10 Naked Turns . | . . . Heaviest Build 22 | 12 17 22 Greatest Support 40 | 20 20 40 Greatest Overweight (x) 1 | . 1 1 Average Overweight (x) . | . . . Largest Inventory Capacity 8 | . 8 8 Average Capacity 8 | . 8 8 Most Carried 8 | . 8 8 Average Carried 7 | . 7 7 Final Capacity 8 | 8 8 8 Final Carried 7 | 6 7 6 Class Distribution -------------------- 100% | Mutant Dominant Class ---------------- Mutant | -10/Materials Mutant | -10/Subcaves Resources | -11 -10 -10 ----------- Run | Yrd Mat Sub Matter Collected 695 | 200 114 381 Remotely . | . . . Salvage Created 745 | . 191 554 Parts 55 | . 18 37 Haulers Intercepted . | . . . Recyclers Shooed . | . . . Parts Field Recycled . | . . . Retrieved Matter . | . . . Parts Self-Destructed 9 | . . 9 Prevented . | . . . Kills | -11 -10 -10 ------- Run | Yrd Mat Sub Combat Hostiles Destroyed 19 | . 8 11 Guns 19 | . 8 11 Classes Destroyed 7 | . 3 4 Operator 1 | . 1 . Swarmer 6 | . 6 . Grunt 2 | . 2 . Sentry 1 | . . 1 Artisan 2 | . . 2 Cobbler 1 | . . 1 Subdweller 10 | . . 10 Best Kill Streak 4 | . 4 2 Combat Bots Only 4 | . 4 2 Max Kills in Single Turn 2 | . 2 1 Gunslinging 1 | . 1 . Exploded . | . . . Melee . | . . . Uniques/NPCs Destroyed . | . . . Combat | -11 -10 -10 -------- Run | Yrd Mat Sub Hostile Shots Fired 100 | . 29 71 Missed 33 | . 11 22 Hits 67 | . 18 49 Projectile 67 | . 18 49 Critical Strikes 2 | . 1 1 Damage Taken 1157 | . 183 974 Core 250 | . 26 224 Absorbed by Shields . | . . . Ignored by Resistances 2 | . . 2 Core Remaining (%) 100 | 100 . . Volleys Fired 94 | . 19 75 Largest 2 | . 2 2 Hottest 130 | . 130 130 Shots Fired 172 | . 38 134 Gun 164 | . 38 126 Cannon . | . . . Launcher . | . . . Special 8 | . . 8 Kinetic 56 | . 15 41 Thermal 86 | . 8 78 Explosive . | . . . Electromagnetic 30 | . 15 15 Robot Hit Streak 16 | . 9 16 Robot Miss Streak 3 | . 3 2 Penetration Max . | . . . Secondary Targets 3 | . 2 1 Max Gunslinging Chain 1 | . 1 1 Shots Hit Robots 105 | . 24 81 Core Hits 40 | . 11 29 Critical Kills . | . . . Critical Parts Destroyed 1 | . . 1 Critical Strikes 2 | . . 2 Burn 1 | . . 1 Destroy 1 | . . 1 Melee Attacks . | . . . Impact . | . . . Slashing . | . . . Piercing . | . . . Sneak Attacks . | . . . Combat Hostiles . | . . . Follow-up Attacks . | . . . Damage Inflicted 1721 | . 342 1379 Guns 1643 | . 317 1326 Cannons . | . . . Explosions 25 | . 25 . Melee . | . . . Ramming . | . . . Kinetic 469 | . 99 370 Thermal 922 | . 89 833 Explosive . | . . . Electromagnetic 330 | . 154 176 Impact . | . . . Slashing . | . . . Piercing . | . . . Highest Corruption 1 | . 1 1 Average Corruption 1 | . 1 1 Corruption Purged . | . . . Corruption Blocked . | . . . Effects 14 | . 1 13 Message Errors 6 | . . 6 Matter Fused 1 | . . 1 Heat Flow Errors 2 | . 1 1 Energy Discharges 1 | . . 1 Data Loss (minor) 2 | . . 2 Misfires 1 | . . 1 Weapon Failures 1 | . . 1 Overload Shots . | . . . Overflow Damage . | . . . Projectiles . | . . . Explosions . | . . . Melee . | . . . Knockbacks . | . . . Impact . | . . . Kinetic . | . . . Secondary . | . . . Self-Inflicted Damage 24 | . 24 . Shots 1 | . 1 . Rammed . | . . . Targets Rammed . | . . . Kicked . | . . . Crushed . | . . . Highest Temperature 261 | . 207 261 Average Temperature 90 | . 60 154 Received Heat Transfer 513 | . 36 477 Siege Activations . | . . . Martial Activations . | . . . Shielding Activations . | . . . Robots Disrupted . | . . . Combat Hostiles . | . . . Robots Corrupted . | . . . Combat Hostiles . | . . . Parts Fried . | . . . Impact Corruptions . | . . . Robots Melted . | . . . Combat Hostiles . | . . . Parts Melted 2 | . . 2 Heat Transferred 2146 | . 198 1948 Parts Sabotaged . | . . . Parts Stolen . | . . . Parts Stripped . | . . . Power Chain Reactions 1 | . 1 . Alert | -11 -10 -10 ------- Run | Yrd Mat Sub Maximum Alert Level . | . . . Low Security (%) 100 | . 100 . Level 1 . | . . . Level 2 . | . . . Level 3 . | . . . Level 4 . | . . . Level 5 . | . . . High Security . | . . . Max Security . | . . . Peak Influence 169 | . 169 . Initial . | . . . Average 65 | . 65 . Influence Increases 243 | . 208 35 Destroy 0b10 Robot/C 180 | . 160 20 Destroy 0b10 Robot/NC 5 | . 5 . Destroy Leader 20 | . 20 . Successful Hack 4 | . 4 . Disable Machine 15 | . 15 . Destroy Structure 4 | . 4 . Lose Combat Pursuer 15 | . . 15 Influence Decreases 228 | . 208 20 Time Decay 228 | . 208 20 Squads Dispatched 2 | . 2 . Investigation 1 | . 1 . Extermination . | . . . Reinforcement 1 | . 1 . Assault . | . . . Garrison . | . . . Intercept . | . . . Searches Triggered . | . . . Construction Impeded . | . . . Haulers Reinforced . | . . . Active Scanning Responses . | . . . Cargo Convoy Interrupts . | . . . Stealth | -11 -10 -10 --------- Run | Yrd Mat Sub Distress Signals 1 | . 1 . Communications Jammed . | . . . Distress Signals . | . . . Times Spotted 26 | . 13 13 Peak Tracking Total 5 | . 5 2 Tactical Retreats 1 | . . 1 Traps | -11 -10 -10 ------- Run | Yrd Mat Sub Traps Triggered 1 | . 1 . Indirectly . | . . . Trap Hack Attempts . | . . . Triggered . | . . . Disarmed . | . . . Reprogrammed . | . . . Reused 1 | . . 1 Traps Extracted . | . . . Installed 1 | . . 1 Triggered . | . . . Most Traps Carried 1 | . . 1 Machines | -11 -10 -10 ---------- Run | Yrd Mat Sub Machines Disabled 1 | . 1 . Max in Single Turn 1 | . 1 . Machines Repaired . | . . . Machines Dismantled . | . . . Machines Sabotaged . | . . . Overloaded Fab Kills . | . . . Hacking | -11 -10 -10 --------- Run | Yrd Mat Sub Machines Accessed 5 | . 3 2 Terminals 3 | . 3 . Fabricators . | . . . Repair Stations . | . . . Recycling Units . | . . . Scanalyzers . | . . . Garrison Access . | . . . Total Hacks 11 | . 8 3 Successful 8 | . 5 3 Failed 3 | . 3 . Catastrophic . | . . . Database Lockouts . | . . . Manual 4 | . 4 . Terminals 8 | . 8 . Fabricators . | . . . Repair Stations . | . . . Recycling Units . | . . . Scanalyzers . | . . . Garrison Access . | . . . Terminal Hacks 8 | . 5 3 Record 1 | . . 1 Robot Analysis 2 | . 2 . Prototype ID Bank 1 | . 1 . Open Door 1 | . . 1 Zone Layout 2 | . 2 . Release Object 1 | . . 1 Fabricator Hacks . | . . . Repair Station Hacks . | . . . Recycling Unit Hacks . | . . . Scanalyzer . | . . . Garrison Access Hacks . | . . . Unauthorized Hacks . | . . . Terminals . | . . . Fabricators . | . . . Repair Stations . | . . . Recycling Units . | . . . Scanalyzers . | . . . Garrison Access . | . . . Data Cores Recovered . | . . . Used . | . . . Hacking Detections 3 | . 3 . Full Trace Events 1 | . 1 . Feedback Events . | . . . Feedback Blocked . | . . . Robot Schematics Acquired . | . . . Robots Built . | . . . Authchips . | . . . Time . | . . . Total Robot Build Rating . | . . . Part Schematics Acquired . | . . . Parts Built . | . . . Authchips . | . . . Time . | . . . Total Part Build Rating . | . . . Parts Repaired . | . . . Time . | . . . Parts Recycled . | . . . Recycled Matter . | . . . Retrieved Matter . | . . . Retrieved Components . | . . . Parts Scanalyzed . | . . . Part Schematics Acquired . | . . . Parts Damaged . | . . . Bothacking | -11 -10 -10 ------------ Run | Yrd Mat Sub Used RIF Installer . | . . . Robots Hacked . | . . . Non-combat . | . . . Combat . | . . . Robot Hacks Applied . | . . . Relay Couplers Released . | . . . Fabnet Peak Effective % . | . . . Robots Rewired . | . . . Allies Hacked . | . . . Hacks Repelled . | . . . Allies | -11 -10 -10 -------- Run | Yrd Mat Sub Total Allies . | . . . Largest Group . | . . . Highest-Rated Group . | . . . Highest-Rated Ally . | . . . Total Orders . | . . . Ally Attacks . | . . . Total Damage . | . . . Kills . | . . . Allies Corrupted . | . . . Allies Melted . | . . . Intel | -11 -10 -10 ------- Run | Yrd Mat Sub Active Infowar (turns) 463 | . . 463 Structural 463 | . . 463 Robot Analysis Total 2 | . 2 . Derelict Logs Recovered 1 | . . 1 Drone Launches . | . . . Drone Recoveries . | . . . Exploration | -11 -10 -10 ------------- Run | Yrd Mat Sub Turns Passed 2244 | . 545 1699 Spaces Moved 1226 | 1 265 960 Core . | . . . Treads 681 | . . 681 Legs 451 | 1 256 194 Wheels 94 | . 9 85 Hover . | . . . Flight . | . . . Fastest Speed 80 | 120 80 80 Average Speed 139 | 120 118 145 Slowest Speed 190 | 120 190 190 Overloaded Moves . | . . . Propulsion Burnouts . | . . . Robots Hopped . | . . . Potential Cave-ins . | . . . Cave-ins Triggered . | . . . Exploration Rate (%) 36 | 2 49 57 Regions Visited 2 Branch Regions 1 Pre-discovered Areas 2 | . . 2 Known Exits Taken . | . . . Unknown Exits Taken 2 | 1 1 . Scrap Searched 4 | . . 4 Spaces Dug . | . . . Terrain Destroyed 3 | . 3 . Melee . | . . . Projectile . | . . . AOE 3 | . 3 . Terrain Rammed . | . . . Walls Destroyed . | . . . Machines Disabled . | . . . Actions | -11 -10 -10 --------- Run | Yrd Mat Sub Total 1578 | . 461 1117 Wait 180 | . 141 39 Move 1224 | . 264 960 Hop . | . . . Pick Up 15 | . 9 6 Fast Attach 7 | . 6 1 Attach 6 | . 2 4 Detach 6 | . 5 1 Swap 26 | . 4 22 Drop 19 | . 11 8 Fire 94 | . 19 75 Melee . | . . . Ram . | . . . Kick . | . . . Crush . | . . . Escape Stasis . | . . . Rewire . | . . . Trap 1 | . . 1 Miscellaneous . | . . . Route ------- -11/Scrapyard -10/Materials (discovered 2 exits: [*Mat] / *Sub) -10/Subcaves (discovered 2 exits: [*Mat] / [*Rec]) History --------- Turn | Location | Event 1 | -11/Scrapyard | Discovered new exit (range 0) 1 | -11/Scrapyard | Entered Materials 178 | -10/Materials | Discovered new exit (range 10) 305 | -10/Materials | Build established: Mutant 525 | -10/Materials | Discovered new exit (range 9) 546 | -10/Materials | Entered Subcaves 553 | -10/Subcaves | Learned location of Zion (-6) 553 | -10/Subcaves | Met a Zionite searching for "candidates" 564 | -10/Subcaves | A swath of the cavern ceiling suddenly collapsed 701 | -10/Subcaves | Shifting Twisted Machinery released Sub. Power Source 868 | -10/Subcaves | Core integrity fell below 50% 1950 | -10/Subcaves | Discovered new exit (range 15) 1959 | -10/Subcaves | Core integrity fell below 20% 1964 | -10/Subcaves | Discovered new exit (range 14) 2208 | -10/Subcaves | Shifting Twisted Machinery released Sub. Monowheel 2245 | -10/Subcaves | Destroyed by Autobeam Turret with Autobeam Last Messages --------------- Take all precautions to prevent this from happening. 02113_ Structural Scanner destroyed. 02126_ SD-B14(R) destroyed. 02131_ Acquired 21 matter. 02134_ Searching scrap... 02134_ Found Piercing Trap. 02134_ Found 47 Matter. 02135_ Searching scrap... 02135_ Found Sub. Optics. 02135_ Found Sub. Machine Gun. 02135_ Found 58 Matter. 02137_ Searching scrap... 02137_ Found Spk. Treads. 02137_ Found Sub. Power Source. 02137_ Found 69 Matter. 02147_ Acquired Piercing Trap. 02151_ Dropped Ion Engine. 02163_ Acquired 10 matter. 02175_ Dropped Lgt. Treads. Sub. Monowheel falls loose from the Twisted Machinery. Map ----- +----------------------------------------------------+ | ?????????????????????????????????????????????????# | | ?????????????????????????????????????????????????# | | ?????????????????????????????????????????????????? | | ?????????????????????????????????????????????????? | | ?????????????????????????????????????????????????? | | ?????????????????????????????????????????????????# | | ?????????????????????????????????????????????????# | | ???????????????????????????????????????????????### | | ??????????????????????????????????????????????#### | | ??????????????????????????????????????????????## | | ??????????????????????????????????????????##### | | ??????????????????????????????????????######### | | ???????????????????????????????#?????####### ? | | ?????????????????????????????? ??????### # | | ?????????????????????????????? ??????## ### | | ????????????????????????????? #??? ?## ### | | ???????????????????????????## ?# ?### ## | | ??????????????????######?#### #?## #### ## | | ?????????????????##;;;#;### ### ## ## | | ?????????????????#" ; ; ;#### ### ### # | | ?????????????????# ; ## #### ##### | | ??????????????#### t ; ; ###### ### | | ??????????? # ; #?###### ## | | ?????????? % <% R ##??##### # | | ?????????? ##?????### | | ?????????????????# t @ & #?????### | | ?????????????????# ; % R & ##?????### ## | | ?????????????????#" " # ###????## ## | | ?????????????????######## ###??#### | | ???????????????????????## ;# ######## | | ???????????????????????#### # # ###### | | ???????????????????????#### | | ???????????????????????### | | ???????????????????????## ##### # ## | | ???????????????????????### #### #### | | ????????????############### ### ### | | ????????????############# #### #### | | ????????????##"""""#### ## ##### ##### | | ????????????##"X& "### # ####### | | ????????????##"" "#" # # ######## | | ????????????##"" "#" # ## ##?#### | | ????????????##"" ## ## ###### | | ????????????##"" "#"X### ### #### | | ????????????########### ### ####### | | ????????????############ ###### | | ?????????????????????### ####?## | | ??????????????????????### #######??## % | | ??????????????????????### < ########???## | | ??????????????????????## ####???????## | | ??????????????????????### ####???????###### | +----------------------------------------------------+ Best States ------------- Heat Dissipation 35 Energy Generation 10 Energy Capacity 250 Matter Stores 300 Matter Capacity 300 Sight Range 16 Terrain Scan Density 10 Armor Coverage 100 Resistance: TH 10 Evasion (%) 55 Targeting Accuracy 6 Recoil Reduction 2 Item Schematics ----------------- None Robot Schematics ------------------ None Fabricated ------------ Nothing Repaired ---------- Nothing Alien Tech Used ----------------- None Achievements -------------- None Challenges ------------ None Game ------ Seed HardcellGatlingMace Manual? 0 Play Time 00:15:40 Cumulative 1033.4 hours Start 2025.05.11 @ 15:39:05 End 2025.05.11 @ 15:48:56 Sessions 1 Manual Loads 0 Difficulty Rogue Special Mode None Game No. 1273 Rogue 991 Adventurer 124 Explorer 158 Win Type - Total 44 Types 31/0/8/3/1/0/0/1/0/0 Lore% 91 Gallery% 85 Achievement% 79 Wizard Run 0 Options --------- Layout 0 ASCII 0 Keyboard 1 Movement Numpad Keybinds 0 Fullscreen 2 Font 18/X11 Map View 76x50 Zoom Use 1% Tactical HUD 1 Map Filters NONE Filters NONE Steam 1 RUN: 01b152b0-5a81-4490-bca1-8130137f3220